[Event "Titled Tuesday Blitz October 19 2021"]
[White "Padmini, Rout"]
[Black "Cunha, Lucas Aguiar"]
[WhiteFideId "5029295"]
[BlackFideId "2125404"]
[WhiteElo "2196"]
[BlackElo "2361"]
[Result "1-0"]
[Round "10"]
[TimeControl "180+1"]
[Date "2021.10.19"]
[WhiteClock "0:01:35"]
[BlackClock "0:00:52"]

1. c4 {[%clk 0:03:00]}  e6 {[%clk 0:02:59]} 2. Nf3 {[%clk 0:02:59]}  d5 {[%clk 0:03:00]} 3. cxd5 {[%clk 0:02:59]}  exd5 {[%clk 0:03:00]} 4. d4 {[%clk 0:03:00]}  Bg4 {[%clk 0:02:55]} 5. Nc3 {[%clk 0:03:00]}  c6 {[%clk 0:02:54]} 6. e3 {[%clk 0:02:56]}  Nd7 {[%clk 0:02:53]} 7. Be2 {[%clk 0:02:56]}  Bd6 {[%clk 0:02:52]} 8. O-O {[%clk 0:02:57]}  Qc7 {[%clk 0:02:52]} 9. h3 {[%clk 0:02:57]}  Bh5 {[%clk 0:02:51]} 10. Nh4 {[%clk 0:02:55]}  Bg6 {[%clk 0:02:47]} 11. f4 {[%clk 0:02:52]}  Be4 {[%clk 0:02:33]} 12. Nxe4 {[%clk 0:02:48]}  dxe4 {[%clk 0:02:34]} 13. Nf5 {[%clk 0:02:49]}  Bf8 {[%clk 0:02:34]} 14. Qc2 {[%clk 0:02:46]}  g6 {[%clk 0:02:34]} 15. Qxe4+ {[%clk 0:02:45]}  Kd8 {[%clk 0:02:33]} 16. Ng3 {[%clk 0:02:44]}  f5 {[%clk 0:02:30]} 17. Qf3 {[%clk 0:02:39]}  Ngf6 {[%clk 0:02:30]} 18. Bd2 {[%clk 0:02:39]}  Qb6 {[%clk 0:02:25]} 19. Bc3 {[%clk 0:02:38]}  Nd5 {[%clk 0:02:20]} 20. e4 {[%clk 0:02:38]}  fxe4 {[%clk 0:02:19]} 21. Nxe4 {[%clk 0:02:39]}  Bg7 {[%clk 0:02:17]} 22. Rad1 {[%clk 0:02:37]}  Rf8 {[%clk 0:02:12]} 23. Qg3 {[%clk 0:02:22]}  Qc7 {[%clk 0:02:01]} 24. Ng5 {[%clk 0:02:20]}  Qd6 {[%clk 0:02:01]} 25. Bg4 {[%clk 0:02:02]}  Rf6 {[%clk 0:01:35]} 26. Rde1 {[%clk 0:01:54]}  Nf8 {[%clk 0:01:30]} 27. Ne4 {[%clk 0:01:51]}  Qc7 {[%clk 0:01:30]} 28. Nxf6 {[%clk 0:01:51]}  Bxf6 {[%clk 0:01:31]} 29. Be6 {[%clk 0:01:44]}  Nxe6 {[%clk 0:01:26]} 30. Rxe6 {[%clk 0:01:45]}  Qf7 {[%clk 0:01:12]} 31. f5 {[%clk 0:01:44]}  gxf5 {[%clk 0:01:10]} 32. Qd6+ {[%clk 0:01:44]}  Kc8 {[%clk 0:01:10]} 33. Rxf5 {[%clk 0:01:40]}  Qc7 {[%clk 0:00:52]} 34. Re8+ {[%clk 0:01:35]}  Bd8 {[%clk 0:00:52]} 35. Rxd8+ {[%clk 0:01:35]}  Qxd8 {[%clk 0:00:52]} 36. Rf8 {[%clk 0:01:35]} 1-0


[Site "https://www.chess.com"]

[Event "Titled Tuesday Blitz October 19 2021"]
[White "Sethuraman, S.P."]
[Black "Jaracz, Pawel"]
[WhiteFideId "5021596"]
[BlackFideId "1102222"]
[WhiteElo "2477"]
[BlackElo "2495"]
[Result "1-0"]
[Round "10"]
[TimeControl "180+1"]
[Date "2021.10.19"]
[WhiteClock "0:00:49"]
[BlackClock "0:00:06"]

1. d4 {[%clk 0:03:00]}  d5 {[%clk 0:02:57]} 2. c4 {[%clk 0:03:00]}  e6 {[%clk 0:02:57]} 3. Nf3 {[%clk 0:03:00]}  Nf6 {[%clk 0:02:57]} 4. g3 {[%clk 0:03:00]}  dxc4 {[%clk 0:02:56]} 5. Bg2 {[%clk 0:03:00]}  c6 {[%clk 0:02:56]} 6. O-O {[%clk 0:02:58]}  b5 {[%clk 0:02:55]} 7. Nc3 {[%clk 0:02:57]}  Bb7 {[%clk 0:02:55]} 8. Ne5 {[%clk 0:02:56]}  a6 {[%clk 0:02:55]} 9. b3 {[%clk 0:02:49]}  b4 {[%clk 0:02:45]} 10. Ne4 {[%clk 0:02:47]}  Nxe4 {[%clk 0:02:41]} 11. Bxe4 {[%clk 0:02:48]}  c3 {[%clk 0:02:42]} 12. a3 {[%clk 0:02:48]}  a5 {[%clk 0:02:40]} 13. Qd3 {[%clk 0:02:40]}  Bd6 {[%clk 0:02:00]} 14. Bf4 {[%clk 0:02:19]}  f5 {[%clk 0:01:46]} 15. Bf3 {[%clk 0:02:05]}  O-O {[%clk 0:01:45]} 16. Qc4 {[%clk 0:02:04]}  Re8 {[%clk 0:01:33]} 17. axb4 {[%clk 0:01:59]}  Bxb4 {[%clk 0:01:25]} 18. Qd3 {[%clk 0:01:43]}  Qb6 {[%clk 0:01:12]} 19. Nc4 {[%clk 0:01:43]}  Qb5 {[%clk 0:01:12]} 20. Qe3 {[%clk 0:01:35]}  Nd7 {[%clk 0:01:09]} 21. Nd6 {[%clk 0:01:30]}  Bxd6 {[%clk 0:01:08]} 22. Bxd6 {[%clk 0:01:31]}  e5 {[%clk 0:00:58]} 23. Qxc3 {[%clk 0:01:09]}  e4 {[%clk 0:00:57]} 24. Bg2 {[%clk 0:01:09]}  Qd5 {[%clk 0:00:55]} 25. Bc7 {[%clk 0:01:02]}  Ra6 {[%clk 0:00:36]} 26. Rxa5 {[%clk 0:01:00]}  Rxa5 {[%clk 0:00:35]} 27. Bxa5 {[%clk 0:01:00]}  Ra8 {[%clk 0:00:34]} 28. b4 {[%clk 0:01:00]}  Ba6 {[%clk 0:00:34]} 29. Rc1 {[%clk 0:00:53]}  Bb5 {[%clk 0:00:34]} 30. e3 {[%clk 0:00:51]}  Nf6 {[%clk 0:00:31]} 31. Bf1 {[%clk 0:00:50]}  Bxf1 {[%clk 0:00:14]} 32. Kxf1 {[%clk 0:00:51]}  h5 {[%clk 0:00:09]} 33. Qxc6 {[%clk 0:00:49]}  Kh7 {[%clk 0:00:05]} 34. Qxd5 {[%clk 0:00:48]}  Nxd5 {[%clk 0:00:06]} 35. Rc5 {[%clk 0:00:49]} 1-0


[Site "https://www.chess.com"]

[Event "Titled Tuesday Blitz October 19 2021"]
[White "Seul, Georg"]
[Black "Krivonosov, Oleg"]
[WhiteFideId "4601653"]
[BlackFideId "11600349"]
[WhiteElo "2332"]
[BlackElo "2469"]
[Result "1/2-1/2"]
[Round "10"]
[TimeControl "180+1"]
[Date "2021.10.19"]
[WhiteClock "0:00:37"]
[BlackClock "0:00:11"]

1. e4 {[%clk 0:03:00]}  e5 {[%clk 0:02:59]} 2. Nc3 {[%clk 0:03:00]}  Nf6 {[%clk 0:02:58]} 3. f4 {[%clk 0:02:59]}  d5 {[%clk 0:02:57]} 4. fxe5 {[%clk 0:02:59]}  Nxe4 {[%clk 0:02:57]} 5. Qf3 {[%clk 0:03:00]}  Nc6 {[%clk 0:02:55]} 6. Bb5 {[%clk 0:02:59]}  Nxc3 {[%clk 0:02:54]} 7. dxc3 {[%clk 0:02:59]}  a6 {[%clk 0:02:55]} 8. Bxc6+ {[%clk 0:02:56]}  bxc6 {[%clk 0:02:56]} 9. Bf4 {[%clk 0:02:55]}  Qh4+ {[%clk 0:02:53]} 10. Bg3 {[%clk 0:02:48]}  Qg4 {[%clk 0:02:53]} 11. Qf2 {[%clk 0:02:42]}  Qe4+ {[%clk 0:02:47]} 12. Ne2 {[%clk 0:02:41]}  Be7 {[%clk 0:02:40]} 13. O-O {[%clk 0:02:39]}  O-O {[%clk 0:02:38]} 14. Nd4 {[%clk 0:02:39]}  Bd7 {[%clk 0:02:35]} 15. Rae1 {[%clk 0:02:36]}  Qg6 {[%clk 0:02:34]} 16. Nf5 {[%clk 0:02:35]}  Bxf5 {[%clk 0:02:32]} 17. Qxf5 {[%clk 0:02:34]}  Qxf5 {[%clk 0:02:30]} 18. Rxf5 {[%clk 0:02:34]}  c5 {[%clk 0:02:24]} 19. e6 {[%clk 0:02:31]}  fxe6 {[%clk 0:02:24]} 20. Rxf8+ {[%clk 0:02:31]}  Kxf8 {[%clk 0:02:22]} 21. Rxe6 {[%clk 0:02:31]}  Ra7 {[%clk 0:02:06]} 22. Rc6 {[%clk 0:02:26]}  Ke8 {[%clk 0:02:06]} 23. Rxc7 {[%clk 0:02:25]}  Rxc7 {[%clk 0:02:05]} 24. Bxc7 {[%clk 0:02:24]}  Kd7 {[%clk 0:02:05]} 25. Be5 {[%clk 0:02:23]}  g6 {[%clk 0:02:04]} 26. Kf1 {[%clk 0:02:23]}  Ke6 {[%clk 0:02:03]} 27. Bf4 {[%clk 0:02:08]}  Kf5 {[%clk 0:02:02]} 28. Bd2 {[%clk 0:02:07]}  Ke4 {[%clk 0:02:02]} 29. Ke2 {[%clk 0:02:07]}  h5 {[%clk 0:01:59]} 30. h3 {[%clk 0:02:06]}  Bd6 {[%clk 0:01:59]} 31. b3 {[%clk 0:02:03]}  Be7 {[%clk 0:01:55]} 32. a4 {[%clk 0:02:03]}  c4 {[%clk 0:01:19]} 33. b4 {[%clk 0:01:58]}  d4 {[%clk 0:01:19]} 34. cxd4 {[%clk 0:01:48]}  Kxd4 {[%clk 0:01:20]} 35. c3+ {[%clk 0:01:43]}  Kd5 {[%clk 0:01:19]} 36. Be3 {[%clk 0:01:39]}  Bf6 {[%clk 0:01:19]} 37. Kd2 {[%clk 0:01:38]}  Be5 {[%clk 0:01:17]} 38. b5 {[%clk 0:01:34]}  axb5 {[%clk 0:01:16]} 39. axb5 {[%clk 0:01:34]}  Bd6 {[%clk 0:01:12]} 40. Bd4 {[%clk 0:01:33]}  Ke4 {[%clk 0:01:07]} 41. Ke2 {[%clk 0:01:33]}  Bg3 {[%clk 0:01:02]} 42. b6 {[%clk 0:01:31]}  Kd5 {[%clk 0:01:01]} 43. Kf3 {[%clk 0:01:31]}  Bd6 {[%clk 0:01:00]} 44. g4 {[%clk 0:01:28]}  Bb8 {[%clk 0:00:57]} 45. Be3 {[%clk 0:01:23]}  Kc6 {[%clk 0:00:49]} 46. Ke4 {[%clk 0:01:22]}  hxg4 {[%clk 0:00:48]} 47. hxg4 {[%clk 0:01:22]}  Bd6 {[%clk 0:00:48]} 48. Bd4 {[%clk 0:01:13]}  Bg3 {[%clk 0:00:44]} 49. Be5 {[%clk 0:01:10]}  Bf2 {[%clk 0:00:42]} 50. Bd4 {[%clk 0:01:09]}  Bg3 {[%clk 0:00:42]} 51. Be3 {[%clk 0:01:08]}  Bd6 {[%clk 0:00:39]} 52. Kd4 {[%clk 0:01:07]}  Bc5+ {[%clk 0:00:39]} 53. Ke4 {[%clk 0:01:06]}  Be7 {[%clk 0:00:37]} 54. Ke5 {[%clk 0:01:06]}  Bd8 {[%clk 0:00:35]} 55. Ke6 {[%clk 0:01:05]}  Bh4 {[%clk 0:00:30]} 56. Kf7 {[%clk 0:01:03]}  Be1 {[%clk 0:00:19]} 57. Bd4 {[%clk 0:01:01]}  g5 {[%clk 0:00:19]} 58. Kg6 {[%clk 0:01:01]}  Bd2 {[%clk 0:00:19]} 59. Kf5 {[%clk 0:01:01]}  Bf4 {[%clk 0:00:19]} 60. Ke4 {[%clk 0:01:01]}  Bd2 {[%clk 0:00:19]} 61. Be5 {[%clk 0:00:55]}  Kxb6 {[%clk 0:00:18]} 62. Kd5 {[%clk 0:00:54]}  Kb5 {[%clk 0:00:18]} 63. Bf6 {[%clk 0:00:53]}  Be3 {[%clk 0:00:16]} 64. Ke4 {[%clk 0:00:48]}  Bd2 {[%clk 0:00:16]} 65. Kd5 {[%clk 0:00:48]}  Be3 {[%clk 0:00:16]} 66. Bd4 {[%clk 0:00:46]}  Bd2 {[%clk 0:00:16]} 67. Ke4 {[%clk 0:00:45]}  Ka4 {[%clk 0:00:15]} 68. Kf5 {[%clk 0:00:40]}  Kb3 {[%clk 0:00:15]} 69. Bf6 {[%clk 0:00:40]}  Bxc3 {[%clk 0:00:13]} 70. Bxg5 {[%clk 0:00:40]}  Bh8 {[%clk 0:00:12]} 71. Bf4 {[%clk 0:00:38]}  c3 {[%clk 0:00:12]} 72. g5 {[%clk 0:00:39]}  c2 {[%clk 0:00:12]} 73. g6 {[%clk 0:00:39]}  Bc3 {[%clk 0:00:12]} 74. Ke6 {[%clk 0:00:38]}  Ka2 {[%clk 0:00:11]} 75. Kf7 {[%clk 0:00:37]}  Kb1 {[%clk 0:00:11]} 76. g7 {[%clk 0:00:37]}  Bxg7 {[%clk 0:00:11]} 77. Kxg7 {[%clk 0:00:37]}  c1=Q {[%clk 0:00:11]} 78. Bxc1 {[%clk 0:00:37]} 1/2-1/2


[Site "https://www.chess.com"]

[Event "Titled Tuesday Blitz October 19 2021"]
[White "Shipov, Sergei"]
[Black "Gurvich, Vitaly"]
[WhiteFideId "4113624"]
[BlackFideId "24164852"]
[WhiteElo "2793"]
[BlackElo "2275"]
[Result "1/2-1/2"]
[Round "10"]
[TimeControl "180+1"]
[Date "2021.10.19"]
[WhiteClock "0:01:49"]
[BlackClock "0:01:53"]

1. d4 {[%clk 0:02:18]}  Nf6 {[%clk 0:02:54]} 2. c4 {[%clk 0:02:18]}  g6 {[%clk 0:02:50]} 3. Nc3 {[%clk 0:02:17]}  d5 {[%clk 0:02:49]} 4. Nf3 {[%clk 0:02:13]}  Bg7 {[%clk 0:02:49]} 5. cxd5 {[%clk 0:02:13]}  Nxd5 {[%clk 0:02:49]} 6. Bg5 {[%clk 0:02:13]}  Nxc3 {[%clk 0:02:47]} 7. bxc3 {[%clk 0:02:13]}  O-O {[%clk 0:02:47]} 8. Qd2 {[%clk 0:02:13]}  c5 {[%clk 0:02:47]} 9. e3 {[%clk 0:02:12]}  Nd7 {[%clk 0:02:45]} 10. Bd3 {[%clk 0:02:10]}  Nf6 {[%clk 0:02:42]} 11. O-O {[%clk 0:02:08]}  b6 {[%clk 0:02:41]} 12. a4 {[%clk 0:02:07]}  Bb7 {[%clk 0:02:40]} 13. Qb2 {[%clk 0:01:59]}  Bxf3 {[%clk 0:02:14]} 14. gxf3 {[%clk 0:01:57]}  Qd5 {[%clk 0:02:14]} 15. Bxf6 {[%clk 0:01:57]}  Qxf3 {[%clk 0:02:03]} 16. Bxg7 {[%clk 0:01:53]}  Qg4+ {[%clk 0:02:02]} 17. Kh1 {[%clk 0:01:50]}  Qf3+ {[%clk 0:01:54]} 18. Kg1 {[%clk 0:01:48]}  Qg4+ {[%clk 0:01:52]} 19. Kh1 {[%clk 0:01:49]}  Qf3+ {[%clk 0:01:53]} 20. Kg1 {[%clk 0:01:49]} 1/2-1/2


[Site "https://www.chess.com"]

[Event "Titled Tuesday Blitz October 19 2021"]
[White "Timofeev, Artyom"]
[Black "Mikhalevski, Victor"]
[WhiteFideId "4140419"]
[BlackFideId "2801914"]
[WhiteElo "2591"]
[BlackElo "2577"]
[Result "0-1"]
[Round "10"]
[TimeControl "180+1"]
[Date "2021.10.19"]
[WhiteClock "0:00:48"]
[BlackClock "0:01:10"]

1. c4 {[%clk 0:03:00]}  Nf6 {[%clk 0:02:57]} 2. Nc3 {[%clk 0:03:00]}  d5 {[%clk 0:02:58]} 3. e3 {[%clk 0:02:59]}  g6 {[%clk 0:02:55]} 4. Nf3 {[%clk 0:02:57]}  Bg7 {[%clk 0:02:54]} 5. b3 {[%clk 0:02:57]}  O-O {[%clk 0:02:40]} 6. Bb2 {[%clk 0:02:57]}  c6 {[%clk 0:02:40]} 7. Be2 {[%clk 0:02:56]}  Re8 {[%clk 0:02:33]} 8. d4 {[%clk 0:02:53]}  Nbd7 {[%clk 0:02:31]} 9. O-O {[%clk 0:02:52]}  Ne4 {[%clk 0:02:26]} 10. Qc2 {[%clk 0:02:42]}  Nxc3 {[%clk 0:02:25]} 11. Bxc3 {[%clk 0:02:42]}  e6 {[%clk 0:02:23]} 12. e4 {[%clk 0:02:32]}  b6 {[%clk 0:02:16]} 13. Rad1 {[%clk 0:02:27]}  Bb7 {[%clk 0:02:16]} 14. Rfe1 {[%clk 0:02:25]}  Rc8 {[%clk 0:02:15]} 15. Bf1 {[%clk 0:02:18]}  Qc7 {[%clk 0:02:13]} 16. Bb2 {[%clk 0:01:50]}  dxe4 {[%clk 0:02:00]} 17. Qxe4 {[%clk 0:01:50]}  c5 {[%clk 0:02:01]} 18. Qe3 {[%clk 0:01:50]}  Bxf3 {[%clk 0:01:58]} 19. Qxf3 {[%clk 0:01:49]}  cxd4 {[%clk 0:01:58]} 20. Bxd4 {[%clk 0:01:50]}  Bxd4 {[%clk 0:01:54]} 21. Rxd4 {[%clk 0:01:49]}  a5 {[%clk 0:01:48]} 22. Red1 {[%clk 0:01:48]}  Nc5 {[%clk 0:01:48]} 23. Qf6 {[%clk 0:01:46]}  Qe7 {[%clk 0:01:45]} 24. Qxe7 {[%clk 0:01:45]}  Rxe7 {[%clk 0:01:45]} 25. Rd6 {[%clk 0:01:45]}  Rb7 {[%clk 0:01:39]} 26. g3 {[%clk 0:01:44]}  Kf8 {[%clk 0:01:38]} 27. Bg2 {[%clk 0:01:42]}  Rbb8 {[%clk 0:01:38]} 28. Bc6 {[%clk 0:01:42]}  Ke7 {[%clk 0:01:36]} 29. Kf1 {[%clk 0:01:36]}  Rd8 {[%clk 0:01:36]} 30. Rxd8 {[%clk 0:01:36]}  Rxd8 {[%clk 0:01:36]} 31. Rxd8 {[%clk 0:01:36]}  Kxd8 {[%clk 0:01:37]} 32. Ke2 {[%clk 0:01:37]}  Kc7 {[%clk 0:01:37]} 33. Be8 {[%clk 0:01:34]}  f6 {[%clk 0:01:36]} 34. Bf7 {[%clk 0:01:33]}  Kd6 {[%clk 0:01:35]} 35. Be8 {[%clk 0:01:31]}  f5 {[%clk 0:01:34]} 36. f4 {[%clk 0:01:30]}  e5 {[%clk 0:01:33]} 37. fxe5+ {[%clk 0:01:28]}  Kxe5 {[%clk 0:01:32]} 38. Ke3 {[%clk 0:01:29]}  g5 {[%clk 0:01:32]} 39. Bc6 {[%clk 0:01:28]}  Ne6 {[%clk 0:01:29]} 40. Bd5 {[%clk 0:01:24]}  Nd4 {[%clk 0:01:26]} 41. Bg8 {[%clk 0:01:19]}  h6 {[%clk 0:01:25]} 42. Bd5 {[%clk 0:01:09]}  Nc2+ {[%clk 0:01:22]} 43. Kd2 {[%clk 0:01:08]}  Nb4 {[%clk 0:01:22]} 44. Bg8 {[%clk 0:01:08]}  Nxa2 {[%clk 0:01:22]} 45. c5 {[%clk 0:01:04]}  bxc5 {[%clk 0:01:20]} 46. Kd3 {[%clk 0:01:04]}  f4 {[%clk 0:01:19]} 47. gxf4+ {[%clk 0:01:04]}  gxf4 {[%clk 0:01:18]} 48. Kc4 {[%clk 0:01:04]}  f3 {[%clk 0:01:17]} 49. Kxc5 {[%clk 0:01:05]}  Nc1 {[%clk 0:01:10]} 50. Bc4 {[%clk 0:00:48]}  f2 {[%clk 0:01:10]} 0-1


[Site "https://www.chess.com"]

[Event "Titled Tuesday Blitz October 19 2021"]
[White "Demchenko, Anton"]
[Black "Abarca Gonzalez, Nicolas"]
[WhiteFideId "4160258"]
[BlackFideId "3409422"]
[WhiteElo "2583"]
[BlackElo "2504"]
[Result "0-1"]
[Round "11"]
[TimeControl "180+1"]
[Date "2021.10.19"]
[WhiteClock "0:00:06"]
[BlackClock "0:00:06"]

1. e4 {[%clk 0:03:00]}  c5 {[%clk 0:02:54]} 2. Nf3 {[%clk 0:03:00]}  d6 {[%clk 0:02:53]} 3. d4 {[%clk 0:03:00]}  cxd4 {[%clk 0:02:54]} 4. Qxd4 {[%clk 0:03:01]}  a6 {[%clk 0:02:51]} 5. Be2 {[%clk 0:03:00]}  Nc6 {[%clk 0:02:47]} 6. Qe3 {[%clk 0:03:00]}  g6 {[%clk 0:02:45]} 7. h3 {[%clk 0:02:57]}  Bh6 {[%clk 0:02:37]} 8. Qc3 {[%clk 0:02:58]}  Qa5 {[%clk 0:02:31]} 9. Qxa5 {[%clk 0:02:58]}  Nxa5 {[%clk 0:02:31]} 10. Bxh6 {[%clk 0:02:58]}  Nxh6 {[%clk 0:02:31]} 11. c4 {[%clk 0:02:59]}  O-O {[%clk 0:02:26]} 12. Nc3 {[%clk 0:02:59]}  Be6 {[%clk 0:02:21]} 13. b3 {[%clk 0:02:58]}  Rac8 {[%clk 0:02:19]} 14. Rc1 {[%clk 0:02:56]}  Kg7 {[%clk 0:02:11]} 15. O-O {[%clk 0:02:56]}  f5 {[%clk 0:02:07]} 16. e5 {[%clk 0:02:54]}  dxe5 {[%clk 0:02:04]} 17. Nxe5 {[%clk 0:02:55]}  Nf7 {[%clk 0:02:04]} 18. Nf3 {[%clk 0:02:36]}  Nc6 {[%clk 0:02:02]} 19. Rfe1 {[%clk 0:02:34]}  Bd7 {[%clk 0:01:57]} 20. Na4 {[%clk 0:02:34]}  Rcd8 {[%clk 0:01:54]} 21. Nb6 {[%clk 0:02:28]}  e5 {[%clk 0:01:51]} 22. Red1 {[%clk 0:02:11]}  Be6 {[%clk 0:01:48]} 23. Kf1 {[%clk 0:01:57]}  e4 {[%clk 0:01:44]} 24. Ne1 {[%clk 0:01:57]}  Nfe5 {[%clk 0:01:41]} 25. f4 {[%clk 0:01:53]}  Nf7 {[%clk 0:01:36]} 26. Nc2 {[%clk 0:01:51]}  h6 {[%clk 0:01:36]} 27. Kf2 {[%clk 0:01:48]}  Kf6 {[%clk 0:01:36]} 28. Ne3 {[%clk 0:01:46]}  g5 {[%clk 0:01:36]} 29. g3 {[%clk 0:01:46]}  Ne7 {[%clk 0:01:32]} 30. b4 {[%clk 0:01:38]}  Rxd1 {[%clk 0:01:15]} 31. Rxd1 {[%clk 0:01:24]}  Rd8 {[%clk 0:01:15]} 32. Rxd8 {[%clk 0:01:24]}  Nxd8 {[%clk 0:01:15]} 33. a3 {[%clk 0:01:18]}  Ndc6 {[%clk 0:01:13]} 34. Nc2 {[%clk 0:01:11]}  Ng6 {[%clk 0:01:12]} 35. Ke3 {[%clk 0:01:12]}  gxf4+ {[%clk 0:01:10]} 36. gxf4 {[%clk 0:01:11]}  Nh4 {[%clk 0:01:10]} 37. Bf1 {[%clk 0:01:12]}  Nf3 {[%clk 0:01:09]} 38. Na4 {[%clk 0:00:57]}  Ke7 {[%clk 0:01:04]} 39. Nc3 {[%clk 0:00:53]}  Kd6 {[%clk 0:00:58]} 40. c5+ {[%clk 0:00:49]}  Ke7 {[%clk 0:00:56]} 41. Bg2 {[%clk 0:00:44]}  Nh4 {[%clk 0:00:54]} 42. Bh1 {[%clk 0:00:44]}  Bb3 {[%clk 0:00:53]} 43. Nd4 {[%clk 0:00:44]}  Nxd4 {[%clk 0:00:46]} 44. Kxd4 {[%clk 0:00:45]}  Ke6 {[%clk 0:00:46]} 45. a4 {[%clk 0:00:34]}  Bc2 {[%clk 0:00:44]} 46. b5 {[%clk 0:00:33]}  axb5 {[%clk 0:00:45]} 47. axb5 {[%clk 0:00:34]}  Bd3 {[%clk 0:00:45]} 48. b6 {[%clk 0:00:30]}  Kd7 {[%clk 0:00:38]} 49. Nd5 {[%clk 0:00:30]}  Bf1 {[%clk 0:00:22]} 50. Nb4 {[%clk 0:00:19]}  Ng6 {[%clk 0:00:19]} 51. c6+ {[%clk 0:00:18]}  bxc6 {[%clk 0:00:17]} 52. Ke3 {[%clk 0:00:06]}  Ne7 {[%clk 0:00:15]} 53. Kd4 {[%clk 0:00:06]}  Bxh3 {[%clk 0:00:09]} 54. Kc5 {[%clk 0:00:05]}  Bg4 {[%clk 0:00:05]} 55. Na6 {[%clk 0:00:04]}  Kc8 {[%clk 0:00:04]} 56. Kd6 {[%clk 0:00:04]}  Kb7 {[%clk 0:00:02]} 57. Nc5+ {[%clk 0:00:03]}  Kxb6 {[%clk 0:00:03]} 58. Nd7+ {[%clk 0:00:04]}  Kb5 {[%clk 0:00:03]} 59. Bg2 {[%clk 0:00:04]}  c5 {[%clk 0:00:03]} 60. Bf1+ {[%clk 0:00:03]}  c4 {[%clk 0:00:03]} 61. Kxe7 {[%clk 0:00:04]}  e3 {[%clk 0:00:03]} 62. Ne5 {[%clk 0:00:02]}  e2 {[%clk 0:00:03]} 63. Bxe2 {[%clk 0:00:03]}  Bxe2 {[%clk 0:00:04]} 64. Kf6 {[%clk 0:00:03]}  c3 {[%clk 0:00:04]} 65. Kxf5 {[%clk 0:00:03]}  c2 {[%clk 0:00:04]} 66. Kg6 {[%clk 0:00:03]}  c1=Q {[%clk 0:00:04]} 67. Kxh6 {[%clk 0:00:04]}  Qxf4+ {[%clk 0:00:04]} 68. Kh7 {[%clk 0:00:04]}  Qxe5 {[%clk 0:00:05]} 69. Kg8 {[%clk 0:00:05]}  Qc7 {[%clk 0:00:05]} 70. Kf8 {[%clk 0:00:05]}  Bc4 {[%clk 0:00:04]} 71. Ke8 {[%clk 0:00:06]}  Be6 {[%clk 0:00:05]} 72. Kf8 {[%clk 0:00:06]}  Qf7# {[%clk 0:00:06]} 0-1


[Site "https://www.chess.com"]

[Event "Titled Tuesday Blitz October 19 2021"]
[White "Harshavardhan G B"]
[Black "Omariev, Maksim"]
[WhiteFideId "25059009"]
[BlackFideId "4193423"]
[WhiteElo "1825"]
[BlackElo "2429"]
[Result "1-0"]
[Round "11"]
[TimeControl "180+1"]
[Date "2021.10.19"]
[WhiteClock "0:00:42"]
[BlackClock "0:00:01"]

1. e4 {[%clk 0:03:00]}  c5 {[%clk 0:02:59]} 2. Nf3 {[%clk 0:02:59]}  d6 {[%clk 0:03:00]} 3. d4 {[%clk 0:02:58]}  cxd4 {[%clk 0:03:01]} 4. Nxd4 {[%clk 0:02:59]}  Nf6 {[%clk 0:03:01]} 5. Nc3 {[%clk 0:02:59]}  a6 {[%clk 0:03:02]} 6. Be2 {[%clk 0:02:56]}  e6 {[%clk 0:03:02]} 7. Be3 {[%clk 0:02:55]}  Be7 {[%clk 0:03:01]} 8. O-O {[%clk 0:02:54]}  O-O {[%clk 0:03:01]} 9. f4 {[%clk 0:02:53]}  Qc7 {[%clk 0:03:01]} 10. Bf3 {[%clk 0:02:52]}  Nc6 {[%clk 0:02:56]} 11. Kh1 {[%clk 0:02:52]}  Re8 {[%clk 0:02:55]} 12. a4 {[%clk 0:02:47]}  Bf8 {[%clk 0:02:54]} 13. g4 {[%clk 0:02:45]}  Nxd4 {[%clk 0:02:49]} 14. Bxd4 {[%clk 0:02:45]}  e5 {[%clk 0:02:50]} 15. Be3 {[%clk 0:02:35]}  exf4 {[%clk 0:02:49]} 16. Bxf4 {[%clk 0:02:36]}  Be6 {[%clk 0:02:50]} 17. g5 {[%clk 0:02:18]}  Nd7 {[%clk 0:02:50]} 18. Bg4 {[%clk 0:02:17]}  Nc5 {[%clk 0:02:39]} 19. Bg3 {[%clk 0:02:13]}  Qc6 {[%clk 0:02:36]} 20. Re1 {[%clk 0:02:09]}  Rad8 {[%clk 0:01:39]} 21. Qf3 {[%clk 0:02:05]}  d5 {[%clk 0:01:10]} 22. exd5 {[%clk 0:01:36]}  Bxd5 {[%clk 0:01:09]} 23. Nxd5 {[%clk 0:01:35]}  Rxe1+ {[%clk 0:01:09]} 24. Rxe1 {[%clk 0:01:36]}  Qxd5 {[%clk 0:01:09]} 25. Qxd5 {[%clk 0:01:34]}  Rxd5 {[%clk 0:01:10]} 26. Re8 {[%clk 0:01:34]}  Nxa4 {[%clk 0:01:03]} 27. Bf3 {[%clk 0:01:30]}  Rd7 {[%clk 0:00:54]} 28. Bf2 {[%clk 0:01:23]}  f6 {[%clk 0:00:49]} 29. b3 {[%clk 0:01:20]}  Kf7 {[%clk 0:00:44]} 30. Rb8 {[%clk 0:01:17]}  Nc5 {[%clk 0:00:39]} 31. gxf6 {[%clk 0:01:14]}  gxf6 {[%clk 0:00:35]} 32. Rxf8+ {[%clk 0:01:04]}  Kxf8 {[%clk 0:00:34]} 33. Bxc5+ {[%clk 0:01:05]}  Kg7 {[%clk 0:00:34]} 34. Be4 {[%clk 0:01:01]}  h5 {[%clk 0:00:25]} 35. Bd3 {[%clk 0:00:59]}  f5 {[%clk 0:00:12]} 36. Kg2 {[%clk 0:00:51]}  Kf6 {[%clk 0:00:11]} 37. Kf3 {[%clk 0:00:52]}  Ke5 {[%clk 0:00:09]} 38. Be3 {[%clk 0:00:51]}  Rg7 {[%clk 0:00:06]} 39. Bf4+ {[%clk 0:00:49]}  Kd5 {[%clk 0:00:05]} 40. Bxf5 {[%clk 0:00:47]}  Rg1 {[%clk 0:00:02]} 41. Be4+ {[%clk 0:00:47]}  Ke6 {[%clk 0:00:01]} 42. Bxb7 {[%clk 0:00:47]}  a5 {[%clk 0:00:02]} 43. Ba6 {[%clk 0:00:46]}  Ra1 {[%clk 0:00:01]} 44. Bb5 {[%clk 0:00:44]}  Ra2 {[%clk 0:00:01]} 45. c4 {[%clk 0:00:42]} 1-0


[Site "https://www.chess.com"]